[Event "Anderssen Festival 2019"]
[Site "Wroclaw"]
[Date "2019.08.07"]
[Round "4.9"]
[White "Szajda, Marcin"]
[Black "Snihur, Piotr"]
[Result "1/2-1/2"]
[ECO "B19"]
[WhiteElo "1955"]
[BlackElo "2256"]
[Annotator "NA"]
[PlyCount "82"]
[EventDate "2019.08.05"]
[EventType "swiss"]
[EventCountry "POL"]
[SourceTitle "playchess.com"]
[Source "ChessBase"]
[SourceQuality "1"]
[TimeControl "40/5400+30:900+30"]

1. e4 c6 2. d4 d5 3. Nc3 dxe4 4. Nxe4 Bf5 5. Ng3 Bg6 6. h4 h6 7. Nf3 Nd7 8. h5 Bh7 9. Bd3 Bxd3 10. Qxd3 e6 11. Bd2 Ngf6 12. O-O-O Be7 13. Kb1 O-O 14. Ne4 Nxe4 15. Qxe4 Nf6 16. Qe2 Qd5 17. Be3 a5 18. Ne5 a4 19. a3 b5 20. g4 Ne4 21. Rhe1 Nd6 22. c3 Nc4 23. Bc1 Rfd8 24. f4 Nxe5 25. dxe5 Qb3 26. g5 hxg5 27. fxg5 Bxa3 28. g6 Be7 29. gxf7+ Kxf7 30. h6 a3 31. Qh5+ Kg8 32. Qg6 Bf8 33. h7+ Kh8 34. Qf7 a2+ 35. Ka1 Ba3 36. Rxd8+ Rxd8 37. Rg1 Bxb2+ 38. Bxb2 Rd1+ 39. Rxd1 Qxd1+ 40. Kxa2 Qa4+ 41. Kb1 Qd1+ 1/2-1/2

[Event "Anderssen Festival 2019"]
[Site "Wroclaw"]
[Date "2019.08.07"]
[Round "4.10"]
[White "Skiba, Krzysztof"]
[Black "Mitchell, Martin"]
[Result "0-1"]
[ECO "A45"]
[WhiteElo "1722"]
[BlackElo "2218"]
[Annotator "NA"]
[PlyCount "74"]
[EventDate "2019.08.05"]
[EventType "swiss"]
[EventCountry "POL"]
[SourceTitle "playchess.com"]
[Source "ChessBase"]
[SourceQuality "1"]
[TimeControl "40/5400+30:900+30"]

1. d4 Nf6 2. e3 g6 3. Bd3 Bg7 4. f4 c5 5. c3 d6 6. Nf3 O-O 7. O-O cxd4 8. exd4 Nc6 9. Qc2 e5 10. dxe5 dxe5 11. fxe5 Ng4 12. Bf4 Ncxe5 13. Nxe5 Nxe5 14. Bxe5 Bxe5 15. Nd2 Be6 16. Nf3 Bg7 17. Be4 Qc7 18. Nd4 Bxd4+ 19. cxd4 Qxc2 20. Bxc2 Rfd8 21. Rfd1 Rac8 22. Be4 Rc4 23. Bxb7 Rcxd4 24. Rxd4 Rxd4 25. b3 Rd2 26. Bf3 Kf8 27. Kf1 Rb2 28. Ke1 Ke7 29. h3 a5 30. Bb7 Kf6 31. Kf1 Kg5 32. Kg1 a4 33. Bc6 a3 34. Kh2 Kf4 35. b4 Rxa2 36. Rf1+ Ke5 37. Rf3 Ra1 0-1

[Event "Anderssen Festival 2019"]
[Site "Wroclaw"]
[Date "2019.08.07"]
[Round "4.11"]
[White "Nowak, Mikolaj"]
[Black "Zerebiec, Maurycy"]
[Result "1-0"]
[ECO "A35"]
[WhiteElo "2230"]
[BlackElo "1708"]
[Annotator "NA"]
[PlyCount "73"]
[EventDate "2019.08.05"]
[EventType "swiss"]
[EventCountry "POL"]
[SourceTitle "playchess.com"]
[Source "ChessBase"]
[SourceQuality "1"]
[TimeControl "40/5400+30:900+30"]

1. c4 {[%emt 0:00:00]} c5 {[%emt 0:00:05]} 2. Nc3 {[%emt 0:00:03]} Nc6 {[%emt 0:00:07]} 3. Nf3 {[%emt 0:00:23]} e5 {[%emt 0:00:50]} 4. g3 {[%emt 0:01:08]} g6 {[%emt 0:00:07]} 5. Bg2 {[%emt 0:01:09]} Bg7 {[%emt 0:00:17]} 6. O-O {[%emt 0:00:36]} Nge7 {[%emt 0:00:23]} 7. d3 {[%emt 0:03:31]} Rb8 {[%emt 0:01:14]} 8. a3 {[%emt 0:17:41]} a6 {[%emt 0:00:33]} 9. Qc2 {[%emt 0:08:22]} d6 {[%emt 0:05:11]} 10. Nd5 {[%emt 0:03:32]} Nxd5 {[%emt 0:06:12]} 11. cxd5 {[%emt 0:00:02]} Ne7 {[%emt 0:00:43]} 12. e4 {[%emt 0:01:31]} O-O {[%emt 0:00:29]} 13. Rb1 {[%emt 0:02:26]} Bd7 {[%emt 0:03:37]} 14. Be3 {[%emt 0:02:39]} Qc8 {[%emt 0:03:58]} 15. Rfc1 {[%emt 0:01:57]} a5 {[%emt 0:06:47]} 16. b4 {[%emt 0:00:57]} axb4 {[%emt 0:00:23]} 17. axb4 {[%emt 0:00:02]} b6 {[%emt 0:00:12]} 18. bxc5 {[%emt 0:05:53]} bxc5 {[%emt 0:01:43]} 19. Rxb8 {[%emt 0:00:11]} Qxb8 {[%emt 0:00:13]} 20. Rb1 {[%emt 0:00:02]} Qa7 {[%emt 0:01:59]} 21. Qb3 {[%emt 0:04:41]} Ra8 {[%emt 0:00:47]} 22. Nd2 {[%emt 0:01:56]} Nc8 {[%emt 0:03:25]} 23. Nc4 {[%emt 0:04:12]} f6 {[%emt 0:07:03]} 24. h4 {[%emt 0:01:14]} Kf7 {[%emt 0:04:21]} 25. Kh2 {[%emt 0:03:26]} Bf8 {[%emt 0:10:33]} 26. f4 {[%emt 0:03:17]} Qa2 {[%emt 0:02:08]} 27. Qd1 {[%emt 0:01:16]} exf4 {[%emt 0:07:11]} 28. Bxf4 {[%emt 0:02:17]} h5 {[%emt 0:01:03]} 29. Rb2 {[%emt 0:02:51]} Qa1 {[%emt 0:02:54]} 30. Qd2 {[%emt 0:02:09]} Bg4 {[%emt 0:02:20]} 31. Qf2 {[%emt 0:02:51]} Kg8 {[%emt 0:01:09]} 32. Bd2 {[%emt 0:03:23]} Bg7 {[%emt 0:07:52]} 33. Bc3 {[%emt 0:01:08]} Qc1 {[%emt 0:00:29]} 34. Bxf6 {[%emt 0:02:36]} Bxf6 {[%emt 0:01:27]} 35. Qxf6 {[%emt 0:00:02]} Ra1 {[%emt 0:00:22]} 36. Qxg6+ {[%emt 0:01:10]} Kh8 {[%emt 0:00:30]} 37. Qe8+ {[%emt 0:00:59]} 1-0

[Event "Anderssen Festival 2019"]
[Site "Wroclaw"]
[Date "2019.08.07"]
[Round "4.12"]
[White "Wieczorek, Zbigniew"]
[Black "Socha, Kamil"]
[Result "1/2-1/2"]
[ECO "A05"]
[WhiteElo "2235"]
[BlackElo "1741"]
[Annotator "NA"]
[PlyCount "43"]
[EventDate "2019.08.05"]
[EventType "swiss"]
[EventCountry "POL"]
[SourceTitle "playchess.com"]
[Source "ChessBase"]
[SourceQuality "1"]
[TimeControl "40/5400+30:900+30"]

1. Nf3 {[%emt 0:00:00]} Nf6 {[%emt 0:00:00]} 2. g3 {[%emt 0:00:00]} e6 {[%emt 0:00:37]} 3. Bg2 {[%emt 0:00:00]} Be7 {[%emt 0:00:25]} 4. d3 {[%emt 0:00:06]} d5 {[%emt 0:00:24]} 5. Nbd2 {[%emt 0:00:07]} O-O {[%emt 0:00:33]} 6. e4 {[%emt 0:00:09]} c5 {[%emt 0:00:15]} 7. O-O {[%emt 0:00:06]} Qc7 {[%emt 0:00:20]} 8. e5 {[%emt 0:01:05]} Nfd7 {[%emt 0:00:09]} 9. Re1 {[%emt 0:00:07]} Nc6 {[%emt 0:00:09]} 10. Qe2 {[%emt 0:00:09]} b5 {[%emt 0:01:27]} 11. Nf1 {[%emt 0:00:07]} a5 {[%emt 0:01:21]} 12. Bf4 {[%emt 0:00:18]} a4 {[%emt 0:02:00]} 13. a3 {[%emt 0:00:25]} b4 {[%emt 0:00:54]} 14. h4 {[%emt 0:00:28]} Ba6 {[%emt 0:00:58]} 15. Ne3 {[%emt 0:05:47]} Nb6 {[%emt 0:15:10]} 16. h5 {[%emt 0:07:47]} c4 {[%emt 0:09:00]} 17. h6 {[%emt 0:05:44]} g6 {[%emt 0:00:55]} 18. Qd2 {[%emt 0:02:58]} cxd3 {[%emt 0:15:58]} 19. cxd3 {[%emt 0:00:13]} Rfc8 {[%emt 0:16:08]} 20. Ng4 {[%emt 0:12:18]} b3 {[%emt 0:01:28]} 21. Bg5 {[%emt 0:04:58]} Nd7 {[%emt 0:02:15]} 22. Rac1 1/2-1/2

[Event "Anderssen Festival 2019"]
[Site "Wroclaw"]
[Date "2019.08.07"]
[Round "4.13"]
[White "Zgadzaj, Rafal"]
[Black "Dytman, Radoslaw"]
[Result "1-0"]
[ECO "A10"]
[WhiteElo "2133"]
[BlackElo "1745"]
[Annotator "NA"]
[PlyCount "87"]
[EventDate "2019.08.05"]
[EventType "swiss"]
[EventCountry "POL"]
[SourceTitle "playchess.com"]
[Source "ChessBase"]
[SourceQuality "1"]
[TimeControl "40/5400+30:900+30"]

1. c4 {[%emt 0:00:00]} d6 {[%emt 0:00:00]} 2. g3 {[%emt 0:00:50]} e5 {[%emt 0:00:07]} 3. Bg2 {[%emt 0:00:01]} g6 {[%emt 0:00:16]} 4. Nc3 {[%emt 0:00:05]} Bg7 {[%emt 0:00:11]} 5. b4 {[%emt 0:00:23]} f5 {[%emt 0:04:12]} 6. Rb1 {[%emt 0:00:29]} Nf6 {[%emt 0:00:44]} 7. d3 {[%emt 0:00:43]} O-O {[%emt 0:00:32]} 8. Nf3 {[%emt 0:03:12]} Nc6 {[%emt 0:02:20]} 9. O-O {[%emt 0:00:43]} h6 {[%emt 0:01:33]} 10. b5 {[%emt 0:01:49]} Ne7 {[%emt 0:00:14]} 11. Qc2 {[%emt 0:07:25]} g5 {[%emt 0:03:36]} 12. c5 {[%emt 0:01:21]} g4 {[%emt 0:11:34]} 13. Qb3+ {[%emt 0:10:51]} Kh7 {[%emt 0:02:42]} 14. cxd6 {[%emt 0:00:11]} cxd6 {[%emt 0:01:43]} 15. Nd2 {[%emt 0:00:09]} d5 {[%emt 0:09:22]} 16. Ba3 {[%emt 0:09:13]} Be6 {[%emt 0:14:49]} 17. e4 {[%emt 0:13:26]} f4 {[%emt 0:13:53]} 18. exd5 {[%emt 0:00:40]} Bf7 {[%emt 0:07:59]} 19. Be4+ {[%emt 0:06:08]} Kh8 {[%emt 0:00:53]} 20. Nc4 {[%emt 0:06:17]} Nxe4 {[%emt 0:10:48]} 21. dxe4 {[%emt 0:00:21]} Rg8 {[%emt 0:02:48]} 22. Nd6 {[%emt 0:01:27]} Bg6 {[%emt 0:04:24]} 23. Nxb7 {[%emt 0:01:50]} Qb6 {[%emt 0:01:06]} 24. Nc5 {[%emt 0:01:15]} Nc8 {[%emt 0:02:01]} 25. Ne6 {[%emt 0:03:28]} Nd6 {[%emt 0:01:41]} 26. Bc5 {[%emt 0:05:13]} Qb8 {[%emt 0:00:12]} 27. Qb4 {[%emt 0:00:22]} Nf7 {[%emt 0:00:58]} 28. Rbd1 {[%emt 0:02:09]} Ng5 {[%emt 0:02:23]} 29. Nxg5 {[%emt 0:03:54]} hxg5 {[%emt 0:00:03]} 30. d6 {[%emt 0:00:01]} Qd8 {[%emt 0:01:10]} 31. d7 {[%emt 0:00:44]} Bf8 {[%emt 0:00:31]} 32. Bd6 {[%emt 0:03:08]} Qf6 {[%emt 0:00:25]} 33. Qc5 {[%emt 0:01:09]} Bxd6 {[%emt 0:00:04]} 34. Rxd6 {[%emt 0:01:51]} Qg7 {[%emt 0:00:04]} 35. Rfd1 {[%emt 0:11:09]} Rad8 {[%emt 0:00:05]} 36. Qxa7 {[%emt 0:00:25]} f3 {[%emt 0:01:55]} 37. Qc5 {[%emt 0:02:47]} Qh6 {[%emt 0:00:24]} 38. Kf1 {[%emt 0:00:45]} Qxh2 {[%emt 0:00:41]} 39. Ke1 {[%emt 0:00:54]} Qh1+ {[%emt 0:00:34]} 40. Kd2 {[%emt 0:00:00]} Qh7 {[%emt 0:00:00]} 41. Qxe5+ {[%emt 0:00:58]} Rg7 {[%emt 0:02:36]} 42. Qf6 {[%emt 0:01:52]} Qg8 {[%emt 0:01:13]} 43. Rh1+ {[%emt 0:00:19]} Bh7 {[%emt 0:00:06]} 44. Rxh7+ {[%emt 0:00:14]} 1-0

[Event "Anderssen Festival 2019"]
[Site "Wroclaw"]
[Date "2019.08.07"]
[Round "4.14"]
[White "Smal, Tobiasz"]
[Black "Pawicka, Magdalena"]
[Result "0-1"]
[ECO "E20"]
[WhiteElo "2027"]
[BlackElo "1700"]
[Annotator "NA"]
[PlyCount "110"]
[EventDate "2019.08.05"]
[EventType "swiss"]
[EventCountry "POL"]
[SourceTitle "playchess.com"]
[Source "ChessBase"]
[SourceQuality "1"]
[TimeControl "40/5400+30:900+30"]

1. c4 Nf6 2. Nc3 e6 3. d4 Bb4 4. f3 d5 5. a3 Bxc3+ 6. bxc3 c5 7. e3 Nc6 8. cxd5 Nxd5 9. Bd2 cxd4 10. cxd4 O-O 11. Bd3 e5 12. e4 Nf4 13. Bxf4 exf4 14. Ne2 Nxd4 15. Nxf4 Qg5 16. g3 Qa5+ 17. Kf2 Be6 18. Qe1 Qe5 19. Qe3 Rac8 20. Rac1 b6 21. Rxc8 Rxc8 22. Rc1 Rc5 23. Ba6 Nb3 24. Nd3 Qh5 25. Nxc5 Qxh2+ 26. Ke1 Qxg3+ 27. Qf2 Qxf2+ 28. Kxf2 Nxc1 29. Nxe6 fxe6 30. Bc4 Kf7 31. Ke3 b5 32. Bxb5 Nb3 33. f4 Ke7 34. e5 h6 35. Kd3 g5 36. fxg5 hxg5 37. Kc4 Nd2+ 38. Kc5 Nf3 39. Kc6 Nxe5+ 40. Kb7 Kd8 41. Kxa7 Kc7 42. a4 g4 43. a5 g3 44. Bf1 Ng6 45. a6 Nf4 46. Ka8 e5 47. Bg2 Ne6 48. Bf3 Nf8 49. Bg2 Nd7 50. Bf3 Kb6 51. Bb7 Nc5 52. a7 Kc7 53. Bc6 g2 54. Bxg2 Nd7 55. Bf3 Nb6# 0-1

[Event "Anderssen Festival 2019"]
[Site "Wroclaw"]
[Date "2019.08.08"]
[Round "5.2"]
[White "Piotrowski, Przemyslaw"]
[Black "Butkiewicz, Lukasz"]
[Result "1/2-1/2"]
[ECO "A46"]
[WhiteElo "2273"]
[BlackElo "2425"]
[Annotator "NA"]
[PlyCount "130"]
[EventDate "2019.08.05"]
[EventType "swiss"]
[EventCountry "POL"]
[SourceTitle "playchess.com"]
[Source "ChessBase"]
[SourceQuality "1"]
[TimeControl "40/5400+30:900+30"]

1. Nf3 {[%emt 0:00:00]} Nf6 {[%emt 0:00:00]} 2. g3 {[%emt 0:00:00]} b5 {[%emt 0:00:00]} 3. Bg2 {[%emt 0:00:00]} Bb7 {[%emt 0:00:00]} 4. O-O {[%emt 0:00:00]} e6 {[%emt 0:00:00]} 5. d4 {[%emt 0:00:00]} Be7 {[%emt 0:00:06]} 6. a4 {[%emt 0:00:00]} b4 {[%emt 0:00:05]} 7. c3 {[%emt 0:00:21]} a5 {[%emt 0:00:15]} 8. Nbd2 {[%emt 0:00:20]} O-O {[%emt 0:00:15]} 9. Nb3 {[%emt 0:00:52]} bxc3 {[%emt 0:07:35]} 10. bxc3 {[%emt 0:00:29]} d5 {[%emt 0:04:11]} 11. Ne5 {[%emt 0:06:05]} Nbd7 {[%emt 0:02:13]} 12. Nd3 {[%emt 0:02:22]} Nb6 {[%emt 0:15:31]} 13. Ba3 {[%emt 0:02:05]} Bd6 {[%emt 0:05:58]} 14. Nbc5 {[%emt 0:13:59]} Bc6 {[%emt 0:04:24]} 15. Ne5 {[%emt 0:20:11]} Qe8 {[%emt 0:01:00]} 16. c4 {[%emt 0:00:50]} Nxc4 {[%emt 0:07:01]} 17. Nxc4 {[%emt 0:00:37]} dxc4 {[%emt 0:00:07]} 18. e4 {[%emt 0:01:01]} Nd7 {[%emt 0:06:39]} 19. Nxd7 {[%emt 0:32:56]} Qxd7 {[%emt 0:00:25]} 20. Bb2 {[%emt 0:01:25]} Rab8 {[%emt 0:08:10]} 21. Qc2 {[%emt 0:08:36]} Rb4 {[%emt 0:15:03]} 22. Bc3 {[%emt 0:01:30]} Bxa4 {[%emt 0:04:07]} 23. Qe2 {[%emt 0:00:05]} Rbb8 {[%emt 0:01:22]} 24. Bxa5 {[%emt 0:00:49]} Bb3 {[%emt 0:00:09]} 25. Qd2 {[%emt 0:01:25]} Rfd8 {[%emt 0:02:57]} 26. Rfc1 {[%emt 0:03:02]} Be7 {[%emt 0:02:29]} 27. d5 {[%emt 0:00:59]} Bf6 {[%emt 0:01:09]} 28. Bc3 {[%emt 0:00:03]} Bxc3 {[%emt 0:03:14]} 29. Qxc3 {[%emt 0:00:04]} c6 {[%emt 0:01:56]} 30. dxe6 {[%emt 0:00:41]} Qxe6 {[%emt 0:00:11]} 31. Ra7 {[%emt 0:03:26]} h6 {[%emt 0:00:32]} 32. Bf1 {[%emt 0:00:46]} Qxe4 {[%emt 0:00:39]} 33. Re1 {[%emt 0:00:05]} Qd5 {[%emt 0:02:37]} 34. Ree7 {[%emt 0:00:25]} Rf8 {[%emt 0:00:19]} 35. Rad7 {[%emt 0:00:13]} Qc5 {[%emt 0:01:04]} 36. Re4 {[%emt 0:01:46]} Qf5 {[%emt 0:03:23]} 37. Rde7 {[%emt 0:00:22]} Rbd8 {[%emt 0:01:26]} 38. Bxc4 {[%emt 0:00:19]} Bxc4 {[%emt 0:00:42]} 39. Qxc4 {[%emt 0:00:09]} Qf3 {[%emt 0:00:31]} 40. Re1 {[%emt 0:00:00]} Rd2 {[%emt 0:00:00]} 41. Qc5 {[%emt 0:07:13]} Rfd8 {[%emt 0:09:24]} 42. Qe3 {[%emt 0:00:59]} Qf6 {[%emt 0:00:40]} 43. Re2 {[%emt 0:04:02]} Rxe2 {[%emt 0:00:36]} 44. Qxe2 {[%emt 0:00:02]} c5 {[%emt 0:00:50]} 45. Re4 {[%emt 0:00:40]} Qa1+ {[%emt 0:01:37]} 46. Kg2 {[%emt 0:00:05]} Qa8 {[%emt 0:00:06]} 47. Qf3 {[%emt 0:01:11]} Re8 {[%emt 0:03:23]} 48. Rc4 {[%emt 0:00:13]} Qxf3+ {[%emt 0:01:00]} 49. Kxf3 {[%emt 0:00:03]} Re5 {[%emt 0:00:17]} 50. Kg2 {[%emt 0:03:10]} Kf8 {[%emt 0:02:30]} 51. f4 {[%emt 0:00:04]} Rd5 {[%emt 0:00:18]} 52. Kf3 {[%emt 0:00:13]} Ke7 {[%emt 0:00:15]} 53. Ra4 {[%emt 0:01:02]} Ke6 {[%emt 0:00:42]} 54. g4 {[%emt 0:00:29]} g6 {[%emt 0:00:48]} 55. Ke4 {[%emt 0:00:43]} f5+ {[%emt 0:00:32]} 56. gxf5+ {[%emt 0:00:01]} gxf5+ {[%emt 0:00:05]} 57. Ke3 {[%emt 0:00:06]} Rd6 {[%emt 0:00:16]} 58. Ra8 {[%emt 0:00:13]} Kd5 {[%emt 0:01:58]} 59. Rf8 {[%emt 0:00:26]} Re6+ {[%emt 0:00:06]} 60. Kf3 {[%emt 0:00:11]} c4 {[%emt 0:00:10]} 61. Rxf5+ {[%emt 0:00:12]} Kd4 {[%emt 0:00:06]} 62. Rf8 {[%emt 0:00:06]} c3 {[%emt 0:00:40]} 63. Rc8 {[%emt 0:00:13]} Kd3 {[%emt 0:00:41]} 64. f5 {[%emt 0:00:03]} Re1 {[%emt 0:01:11]} 65. Rd8+ {[%emt 0:04:43]} Kc4 {[%emt 0:00:05]} 1/2-1/2

[Event "Anderssen Festival 2019"]
[Site "Wroclaw"]
[Date "2019.08.08"]
[Round "5.3"]
[White "Eggink, Ryszard"]
[Black "Mitchell, Martin"]
[Result "1-0"]
[ECO "B07"]
[WhiteElo "2377"]
[BlackElo "2218"]
[Annotator "NA"]
[PlyCount "45"]
[EventDate "2019.08.05"]
[EventType "swiss"]
[EventCountry "POL"]
[SourceTitle "playchess.com"]
[Source "ChessBase"]
[SourceQuality "1"]
[TimeControl "40/5400+30:900+30"]

1. e4 {[%emt 0:02:15]} d6 {[%emt 0:00:29]} 2. d4 {[%emt 0:00:07]} Nf6 {[%emt 0:00:42]} 3. Nc3 {[%emt 0:00:05]} g6 {[%emt 0:00:00]} 4. Be3 {[%emt 0:00:05]} c6 {[%emt 0:00:58]} 5. Qd2 {[%emt 0:00:32]} b5 {[%emt 0:04:10]} 6. f3 {[%emt 0:02:15]} Nbd7 {[%emt 0:01:04]} 7. g4 {[%emt 0:07:35]} h5 {[%emt 0:08:28]} 8. g5 {[%emt 0:00:14]} Nh7 {[%emt 0:00:10]} 9. d5 {[%emt 0:09:35]} b4 {[%emt 0:19:04]} 10. dxc6 {[%emt 0:02:19]} Ne5 {[%emt 0:01:05]} 11. Bb5 {[%emt 0:01:26]} Qa5 {[%emt 0:05:09]} 12. Nd5 {[%emt 0:02:33]} Rb8 {[%emt 0:16:53]} 13. f4 {[%emt 0:16:56]} e6 {[%emt 0:05:09]} 14. fxe5 {[%emt 0:02:44]} Rxb5 {[%emt 0:02:12]} 15. exd6 {[%emt 0:06:16]} Bxd6 {[%emt 0:06:34]} 16. Nb6 {[%emt 0:02:58]} Be5 {[%emt 0:05:17]} 17. Nc4 {[%emt 0:05:17]} Qc7 {[%emt 0:00:37]} 18. Nf3 {[%emt 0:00:02]} O-O {[%emt 0:05:14]} 19. Ncxe5 {[%emt 0:00:18]} Rxe5 {[%emt 0:00:07]} 20. Nxe5 {[%emt 0:00:22]} Qxe5 {[%emt 0:00:08]} 21. O-O-O {[%emt 0:01:54]} Qxe4 {[%emt 0:00:43]} 22. Bc5 {[%emt 0:01:43]} Re8 {[%emt 0:00:55]} 23. c7 {[%emt 0:00:04]} 1-0

[Event "Anderssen Festival 2019"]
[Site "Wroclaw"]
[Date "2019.08.08"]
[Round "5.4"]
[White "Kareva, Natalia"]
[Black "Dubinski, Mateusz"]
[Result "1/2-1/2"]
[ECO "E70"]
[WhiteElo "2135"]
[BlackElo "2306"]
[Annotator "NA"]
[PlyCount "89"]
[EventDate "2019.08.05"]
[EventType "swiss"]
[EventCountry "POL"]
[SourceTitle "playchess.com"]
[Source "ChessBase"]
[SourceQuality "1"]
[TimeControl "40/5400+30:900+30"]

1. d4 {[%emt 0:00:00]} Nf6 {[%emt 0:00:22]} 2. c4 {[%emt 0:00:40]} g6 {[%emt 0:04:34]} 3. Nc3 {[%emt 0:00:26]} Bg7 {[%emt 0:00:04]} 4. e4 {[%emt 0:00:05]} O-O {[%emt 0:00:08]} 5. g3 {[%emt 0:01:24]} c6 {[%emt 0:11:24]} 6. Bg2 {[%emt 0:00:24]} d5 {[%emt 0:00:11]} 7. cxd5 {[%emt 0:01:20]} cxd5 {[%emt 0:00:05]} 8. e5 {[%emt 0:00:15]} Ne4 {[%emt 0:01:24]} 9. Nxe4 {[%emt 0:08:11]} dxe4 {[%emt 0:00:05]} 10. Bxe4 {[%emt 0:00:12]} Qa5+ {[%emt 0:24:29]} 11. Bd2 {[%emt 0:03:44]} Qb6 {[%emt 0:00:05]} 12. Bc3 {[%emt 0:00:15]} Nc6 {[%emt 0:12:12]} 13. Qb3 {[%emt 0:02:22]} Qa6 {[%emt 0:04:23]} 14. Rd1 {[%emt 0:03:24]} Bf5 {[%emt 0:01:57]} 15. f3 {[%emt 0:18:10]} Bxe4 {[%emt 0:04:51]} 16. fxe4 {[%emt 0:01:24]} b5 {[%emt 0:00:37]} 17. Nf3 {[%emt 0:03:32]} Qb6 {[%emt 0:09:31]} 18. Bb4 {[%emt 0:03:24]} Rfd8 {[%emt 0:15:10]} 19. Bc5 {[%emt 0:04:35]} Qa5+ {[%emt 0:00:04]} 20. Kf2 {[%emt 0:00:46]} Rac8 {[%emt 0:01:51]} 21. Rc1 {[%emt 0:04:13]} Bh6 {[%emt 0:01:24]} 22. Rc2 {[%emt 0:00:29]} b4 {[%emt 0:01:33]} 23. Rd1 {[%emt 0:08:25]} Bg7 {[%emt 0:01:21]} 24. Rc4 {[%emt 0:00:56]} Nxe5 {[%emt 0:01:44]} 25. Nxe5 {[%emt 0:07:43]} Bxe5 {[%emt 0:00:05]} 26. Bxb4 {[%emt 0:03:54]} Qb6 {[%emt 0:01:02]} 27. Bc5 {[%emt 0:00:35]} Rxc5 {[%emt 0:00:59]} 28. dxc5 {[%emt 0:00:17]} Qf6+ {[%emt 0:00:48]} 29. Kg2 {[%emt 0:00:24]} Rb8 {[%emt 0:00:20]} 30. Rb4 {[%emt 0:00:10]} Rc8 {[%emt 0:00:04]} 31. Qc2 {[%emt 0:01:25]} h5 {[%emt 0:01:00]} 32. Rd5 {[%emt 0:03:13]} h4 {[%emt 0:00:32]} 33. Qf2 {[%emt 0:01:14]} Qe6 {[%emt 0:00:44]} 34. Rb3 {[%emt 0:03:57]} hxg3 {[%emt 0:00:24]} 35. hxg3 {[%emt 0:00:59]} Kg7 {[%emt 0:00:11]} 36. Qc2 {[%emt 0:04:48]} f6 {[%emt 0:00:11]} 37. Rd1 {[%emt 0:00:42]} Rh8 {[%emt 0:00:49]} 38. Qf2 {[%emt 0:02:32]} Qh3+ {[%emt 0:00:59]} 39. Kf3 {[%emt 0:00:40]} Qh5+ {[%emt 0:00:14]} 40. g4 {[%emt 0:00:00]} Qh3+ {[%emt 0:00:00]} 41. Ke2 {[%emt 0:03:33]} Qxg4+ {[%emt 0:01:53]} 42. Qf3 {[%emt 0:00:08]} Rh2+ {[%emt 0:01:48]} 43. Kf1 {[%emt 0:00:11]} Rh1+ {[%emt 0:09:57]} 44. Ke2 {[%emt 0:00:11]} Rh2+ {[%emt 0:00:06]} 45. Kf1 {[%emt 0:00:08]} 1/2-1/2

[Event "Anderssen Festival 2019"]
[Site "Wroclaw"]
[Date "2019.08.08"]
[Round "5.5"]
[White "Barbier, Astrid"]
[Black "Gutenev, Alexander"]
[Result "0-1"]
[ECO "B30"]
[WhiteElo "1941"]
[BlackElo "2470"]
[Annotator "ChessBase"]
[PlyCount "54"]
[EventDate "2019.08.05"]
[EventType "swiss"]
[EventCountry "POL"]
[SourceTitle "playchess.com"]
[Source "ChessBase"]
[SourceQuality "1"]
[TimeControl "40/5400+30:900+30"]

1. e4 {[%emt 0:00:00]} c5 {[%emt 0:07:31]} 2. Nc3 {[%emt 0:00:00]} Nc6 {[%emt 0:00:06]} 3. Bb5 {[%emt 0:00:00]} Nd4 {[%emt 0:00:18]} 4. Bc4 {[%emt 0:00:00]} e6 {[%emt 0:00:19]} 5. Nf3 {[%emt 0:02:03]} a6 {[%emt 0:00:51]} 6. Nxd4 {[%emt 0:02:16]} cxd4 {[%emt 0:00:07]} 7. Ne2 {[%emt 0:00:10]} Nf6 {[%emt 0:01:29]} 8. d3 {[%emt 0:04:18]} Bc5 {[%emt 0:00:57]} 9. O-O {[%emt 0:05:07]} d5 {[%emt 0:07:41]} 10. exd5 {[%emt 0:01:37]} Nxd5 {[%emt 0:00:04]} 11. a3 {[%emt 0:04:55]} b5 {[%emt 0:01:35]} 12. Ba2 {[%emt 0:00:36]} Bb7 {[%emt 0:00:05]} 13. c4 {[%emt 0:09:28]} dxc3 {[%emt 0:01:33]} 14. Nxc3 {[%emt 0:01:04]} O-O {[%emt 0:02:52]} 15. Ne4 {[%emt 0:11:28]} Bd4 {[%emt 0:01:22]} 16. Rb1 {[%emt 0:00:52]} h6 {[%emt 0:06:04]} 17. b4 {[%emt 0:12:24]} Rc8 {[%emt 0:09:02]} 18. Bb2 {[%emt 0:02:55]} Bxb2 {[%emt 0:00:38]} 19. Rxb2 {[%emt 0:00:12]} Nc3 {[%emt 0:00:11]} 20. Nxc3 {[%emt 0:02:49]} Rxc3 {[%emt 0:00:05]} 21. Rb3 {[%emt 0:01:23]} Qd5 {[%emt 0:03:27]} 22. f3 {[%emt 0:01:30]} Qd4+ {[%emt 0:00:18]} 23. Kh1 {[%emt 0:01:00]} Rfc8 {[%emt 0:00:42]} 24. Bb1 {[%emt 0:08:11]} Bd5 {[%emt 0:04:40]} 25. Rxc3 {[%emt 0:03:27]} Rxc3 {[%emt 0:00:18]} 26. Qd2 {[%emt 0:01:06]} Rxa3 {[%emt 0:00:37]} 27. Rc1 {[%emt 0:00:22]} g5 {[%emt 0:00:19]} 0-1

[Event "Anderssen Festival 2019"]
[Site "Wroclaw"]
[Date "2019.08.08"]
[Round "5.6"]
[White "Chernyshov, Konstantin"]
[Black "Malecki, Rafal"]
[Result "1-0"]
[ECO "A52"]
[WhiteElo "2446"]
[BlackElo "2063"]
[Annotator "NA"]
[PlyCount "77"]
[EventDate "2019.08.05"]
[EventType "swiss"]
[EventCountry "POL"]
[SourceTitle "playchess.com"]
[Source "ChessBase"]
[SourceQuality "1"]
[TimeControl "40/5400+30:900+30"]

1. d4 {[%emt 0:00:00]} Nf6 {[%emt 0:00:32]} 2. c4 {[%emt 0:00:30]} e5 {[%emt 0:00:52]} 3. dxe5 {[%emt 0:00:26]} Ng4 {[%emt 0:00:30]} 4. Bf4 {[%emt 0:05:21]} g5 {[%emt 0:00:57]} 5. Bg3 {[%emt 0:00:30]} Bg7 {[%emt 0:00:05]} 6. Nf3 {[%emt 0:07:56]} Nc6 {[%emt 0:02:05]} 7. e3 {[%emt 0:01:02]} Ngxe5 {[%emt 0:03:17]} 8. Nxe5 {[%emt 0:02:16]} Nxe5 {[%emt 0:01:45]} 9. Nc3 {[%emt 0:01:29]} d6 {[%emt 0:02:41]} 10. Be2 {[%emt 0:07:07]} Be6 {[%emt 0:12:37]} 11. O-O {[%emt 0:00:47]} O-O {[%emt 0:05:58]} 12. Qb3 {[%emt 0:01:59]} f5 {[%emt 0:14:33]} 13. Bxe5 {[%emt 0:00:30]} Bxe5 {[%emt 0:00:30]} 14. Bf3 {[%emt 0:04:05]} Kh8 {[%emt 0:21:22]} 15. Rad1 {[%emt 0:06:20]} Rb8 {[%emt 0:16:45]} 16. Nd5 {[%emt 0:04:20]} b5 {[%emt 0:04:04]} 17. Rd2 {[%emt 0:18:50]} a5 {[%emt 0:08:05]} 18. Be2 {[%emt 0:08:53]} c6 19. Nc3 {[%emt 0:00:30]} bxc4 20. Qc2 {[%emt 0:00:30]} Qb6 21. Na4 {[%emt 0:00:58]} Qb4 22. f4 {[%emt 0:01:14]} gxf4 23. exf4 {[%emt 0:00:15]} Bxb2 24. Qxb2+ {[%emt 0:00:30]} Qxb2 25. Rxb2 {[%emt 0:00:30]} Rb4 26. Bd1 {[%emt 0:00:48]} Rfb8 27. Re2 {[%emt 0:01:13]} Bf7 28. Re7 {[%emt 0:00:10]} Kg8 29. Rc7 {[%emt 0:00:26]} c5 30. Bc2 {[%emt 0:01:09]} Be6 31. Re1 {[%emt 0:00:47]} Bd5 32. Rd1 {[%emt 0:00:37]} Be4 33. Bxe4 {[%emt 0:00:05]} fxe4 34. Nc3 {[%emt 0:00:06]} e3 35. Re7 {[%emt 0:00:21]} d5 36. Nxd5 {[%emt 0:01:03]} Rb1 37. Rf1 {[%emt 0:00:05]} c3 38. Nxc3 {[%emt 0:00:05]} Rxf1+ 39. Kxf1 {[%emt 0:00:30]} 1-0